[Event "Austrian Bundesliga 2023-24"]
[Site "Austria"]
[Date "2024.03.23"]
[Round "10.13"]
[White "Janzelj, Tim"]
[Black "Brkic, Ante"]
[Result "0-1"]
[ECO "B22"]
[WhiteElo "2403"]
[BlackElo "2633"]
[Annotator "TA"]
[PlyCount "94"]
[EventDate "2023.10.21"]
[EventType "team-tourn"]
[EventCountry "AUT"]
[SourceTitle "playchess.com"]
[Source "ChessBase"]
[SourceQuality "1"]
[TimeControl "40/5400+30:1800+30"]

{[%evp 24,94,0,0,0,0,0,0,0,0,0,0,0,0,0,0,0,-33,-28,-31,-44,-23,0,0,0,0,0,-78,-76,-83,6,8,22,0,0,-7,-9,-61,-73,-58,-68,-70,-72,-347,-298,-306,-203,-279,-193,-404,-164,-320,0,-177,-181,-159,-93,-176,-188,-169,-149,-269,-281,-808,-608,-856,-831,-903,-910,-725,-791,-29978,-29979]} 1. e4 {[%emt 0:00:04]} c5 {[%emt 0:00:08]} 2. c3 {[%emt 0:00:08]} Nf6 {[%emt 0:00:08]} 3. e5 {[%emt 0:00:05]} Nd5 {[%emt 0:00:08]} 4. Nf3 {[%emt 0:01:00]} d6 {[%emt 0:00:49]} 5. Bb5+ {[%emt 0:00:16]} Bd7 {[%emt 0:01:20]} 6. Bc4 {[%emt 0:00:11] B22: Sicilian: 2 c3.} e6 {[%emt 0:00:36]} 7. d4 {[%emt 0:00:35]} dxe5 $5 {[%emt 0:00:30][%mdl 4] Leaves trodden paths.} 8. dxe5 {[%emt 0:12:04]} Bc6 {[%emt 0:00:13]} 9. Qe2 {[%emt 0:00:44]} Nd7 {[%emt 0:01:01]} 10. O-O {[%emt 0:01:13]} Qc7 $146 {[%emt 0:00:14]} ({Predecessor:} 10... N5b6 11. Bd3 Bxf3 12. Qxf3 Nxe5 13. Bb5+ Nc6 14. Rd1 Qc8 15. Bg5 Be7 16. Bxe7 Kxe7 {½-½ Shevchenko,K (2655)-Kravtsiv,M (2604) UKR-ch 90th Kharkov 2021 (7)}) 11. Re1 {[%emt 0:00:43]} h6 {[%emt 0:02:45]} 12. Bxd5 {[%emt 0:09:37]} Bxd5 {[%emt 0:01:15]} 13. Bf4 {[%emt 0:00:10]} O-O-O {[%emt 0:34:26]} 14. Bg3 {[%emt 0:21:33]} c4 {[%emt 0:07:36]} 15. b4 {[%emt 0:04:22]} Bxf3 {[%emt 0:03:05]} 16. Qxf3 {[%emt 0:01:08]} Nb6 {[%emt 0:00:02]} 17. Na3 {[%emt 0:02:01]} Rd3 {[%emt 0:07:43]} 18. Re3 {[%emt 0:04:33]} Rd5 {[%emt 0:00:28]} 19. Re4 {[%emt 0:05:20]} a5 {[%emt 0:06:32]} 20. Nc2 {[%emt 0:16:03]} Rd3 {[%emt 0:07:03]} 21. Re3 {[%emt 0:00:15]} axb4 {[%emt 0:13:50]} 22. cxb4 {[%emt 0:00:01]} Nd5 {[%emt 0:01:19]} 23. Rxd3 {[%emt 0:00:24]} cxd3 {[%emt 0:00:02]} 24. Qxd3 {[%emt 0:00:13]} Bxb4 {[%emt 0:00:34]} 25. Nd4 {[%emt 0:03:30]} (25. Nxb4 $11 {remains equal.} Nxb4 26. Qf3) 25... Qc3 $17 {[%emt 0:03:51]} 26. Qd1 {[%emt 0:00:29]} Qd2 {[%emt 0:00:20]} (26... Qc4 $1 $17 {Hoping for ...Nc3.} 27. Nb3 Nc3) 27. Qg4 $1 $11 {[%emt 0:03:30]} Rd8 {[%emt 0:05:15]} (27... Qd3 $5) 28. Nb3 {[%emt 0:02:05]} (28. Nb5 $5) 28... Qb2 {[%emt 0:01:15]} 29. Qxg7 {[%emt 0:01:49]} Nc3 $1 {[%emt 0:00:13]} 30. Qg4 {[%emt 0:00:16]} (30. Qxf7 $2 Qxa1+ 31. Nxa1 Rd1#) (30. h3 $1 $11 Nxa2 31. Bh4) 30... Nxa2 $15 {[%emt 0:01:27]} 31. Qc4+ {[%emt 0:01:06]} Kb8 {[%emt 0:00:04]} 32. Rf1 $1 {[%emt 0:04:34]} Qc3 {[%emt 0:00:18]} 33. Qh4 $2 {[%emt 0:02:25][%mdl 8192]} (33. Qxc3 $17 Nxc3 34. Bh4) 33... Rd3 {[%emt 0:01:08]} 34. Na1 {[%emt 0:00:16]} (34. Rb1 $2 Qxb3 (34... Qc2 $2 35. Re1 $19) 35. h3 Qxb1+ $19) 34... Nc1 {[%emt 0:00:59]} 35. Qxh6 {[%emt 0:00:39]} Ba3 {[%emt 0:00:45]} (35... Ne2+ 36. Kh1 $19) 36. Qh7 $2 {[%emt 0:00:44]} (36. Kh1) 36... Ka7 {[%emt 0:00:33]} (36... Qxa1 $2 37. Qxd3 (37. Qxf7 $2 Ne2+ 38. Kh1 Qxf1#) 37... Nxd3 38. Rxa1 $18) (36... Qc4 $142 37. Qg8+ (37. Qxf7 $2 Rd8 $19) 37... Ka7 38. Qxf7 Ne2+ 39. Kh1 Rc3) 37. Kh1 $2 {[%emt 0:00:58]} (37. Qe4 {was necessary.} Rd4 (37... Qxa1 $2 {perishes.} 38. Qxd3 Qb2 39. Qe3+ Kb8 40. h4 $18) 38. Qf3 Qxa1 39. Kh1) 37... Bb2 $2 {[%emt 0:00:27]} (37... Qxa1 $2 {loses.} 38. Qxd3 (38. Qxf7 $2 Qd4 $19) 38... Qb2 39. Qe3+ Kb8 40. h4 $18) (37... Qc4 $1 $19 {[%cal Od3g3] And now ...Rxg3! would win.} 38. Nc2 (38. Qxf7 $2 {is the wrong capture.} Rd7 $19) 38... Qxc2 (38... Rxg3 $2 39. Rg1 $19)) 38. Qxf7 $2 {[%emt 0:02:24] [#]} (38. f4 $11 {and White is okay.}) 38... Qc4 $1 $19 {[%emt 0:00:25]} 39. Re1 {[%emt 0:01:42] [#]} Bxa1 {[%emt 0:00:37]} (39... Ne2 $142 $1 {[%cal Oc4a4] ...Qa4! would now be deadly.} 40. f3 Nxg3+ 41. hxg3 Ra3) 40. h4 {[%emt 0:00:00]} (40. Qf4 $17 {was called for.} Qxf4 41. Bxf4) 40... Bb2 $19 {[%emt 0:00:00]} 41. Kh2 {[%emt 0:03:08]} Rd4 {[%emt 0:06:55]} 42. h5 {[%emt 0:01:47]} (42. Qf3 $17) 42... Ne2 $19 {[%emt 0:03:07]} 43. Rxe2 $2 {[%emt 0:03:42]} (43. Qe7) 43... Qxe2 $19 {[%emt 0:00:13]} 44. h6 {[%emt 0:00:04]} Rd5 {[%emt 0:11:48]} 45. Qxe6 {[%emt 0:02:42]} Qh5+ {[%emt 0:00:37]} 46. Qh3 {[%emt 0:00:04]} Bxe5 {[%emt 0:02:03]} 47. Bxe5 {[%emt 0:02:21]} Qxe5+ {[%emt 0:00:49]} 0-1

[Event "Austrian Bundesliga 2023-24"]
[Site "Austria"]
[Date "2024.03.23"]
[Round "10.14"]
[White "Martinovic, Sasa"]
[Black "Pajeken, Jakob Leon"]
[Result "1-0"]
[ECO "D26"]
[WhiteElo "2558"]
[BlackElo "2424"]
[Annotator "TA"]
[PlyCount "117"]
[EventDate "2023.10.21"]
[EventType "team-tourn"]
[EventCountry "AUT"]
[SourceTitle "playchess.com"]
[Source "ChessBase"]
[SourceQuality "1"]
[TimeControl "40/5400+30:1800+30"]

{[%evp 26,117,40,7,43,29,35,29,38,61,47,39,48,23,24,24,43,29,44,39,32,41,39,47,49,47,48,52,50,41,102,110,118,113,110,114,107,75,71,0,121,106,146,88,102,79,85,0,4,0,0,0,72,70,69,81,123,118,147,129,142,146,138,134,137,145,147,137,120,120,150,159,161,146,165,166,166,166,166,177,159,159,157,170,281,231,416,350,556,501,5126,1193,29997,29998]} 1. d4 {[%emt 0:00:02]} d5 {[%emt 0:00:06]} 2. c4 {[%emt 0:00:07]} dxc4 {[%emt 0:00:03]} 3. Nf3 {[%emt 0:00:07]} Nf6 {[%emt 0:00:04]} 4. e3 {[%emt 0:00:03]} e6 {[%emt 0:00:03]} 5. Bxc4 {[%emt 0:00:06]} c5 {[%emt 0:00:01]} 6. O-O {[%emt 0:00:23]} Nc6 {[%emt 0:00:03]} 7. Nc3 {[%emt 0:00:17] D26: Angenommenes Damengambit.} a6 {[%emt 0:00:04]} 8. d5 {[%emt 0:00:19]} Nxd5 {[%emt 0:00:05]} 9. Nxd5 {[%emt 0:00:09]} b5 {[%emt 0:00:04]} 10. Bb3 {[%emt 0:00:14]} c4 {[%emt 0:00:11]} 11. Bxc4 {[%emt 0:00:25]} bxc4 {[%emt 0:00:07]} 12. e4 {[%emt 0:00:16]} Bb7 {[%emt 0:00:22]} 13. Bf4 $146 {[%emt 0:00:16]} ({Predecessor:} 13. Re1 Bb4 14. Bg5 f6 15. Bd2 Bxd2 16. Qxd2 Rc8 17. Ne3 Qxd2 18. Nxd2 Ne5 19. Rec1 {1-0 Nakamura,H (2768)-Dominguez Perez,L (2745) Chess.com Rapid CGC KO 2022 (3.1)}) 13... Rc8 {[%emt 0:00:27]} 14. Qe2 {[%emt 0:00:24]} Bd6 {[%emt 0:06:06]} (14... exd5 15. exd5+ Qe7 16. Qd2 $18) 15. Bxd6 {[%emt 0:00:18]} Qxd6 {[%emt 0:00:06]} 16. Nc3 {[%emt 0:00:06]} Ne5 {[%emt 0:15:39]} 17. Nxe5 {[%emt 0:06:16]} Qxe5 {[%emt 0:00:20]} 18. Rad1 {[%emt 0:00:09]} (18. Rfd1 {hält die Spannung aufrecht.} Ke7 19. Rd2 Rhd8 20. Rad1) 18... O-O {[%emt 0:01:11]} 19. Rd7 {[%emt 0:01:40]} Bc6 {[%emt 0:06:34]} 20. Rd2 {[%emt 0:00:05]} f5 {[%emt 0:06:42]} 21. exf5 {[%emt 0:11:31]} (21. Qxc4 $2 {zu gefräßig.} Bb5 (21... Bxe4 22. Qxa6 Bc6 23. Rfd1 $16) 22. Qd4 Qxd4 23. Rxd4 Bxf1 24. Kxf1 Rfd8 25. Rxd8+ Rxd8 $19) (21. Rfd1 {sieht schärfer aus.} fxe4 22. Rd4 Qf4 23. R1d2) 21... Qxe2 {[%emt 0:02:10]} 22. Nxe2 {[%emt 0:00:33]} exf5 {[%emt 0:01:13]} 23. f3 {[%emt 0:00:26]} g5 {[%emt 0:13:56]} 24. Kf2 {[%emt 0:03:58]} f4 {[%emt 0:05:30]} 25. Rc1 {[%emt 0:02:49]} Be8 {[%emt 0:03:05]} 26. h4 {[%emt 0:27:22]} gxh4 {[%emt 0:03:25]} 27. Rh1 {[%emt 0:01:06]} Rc5 {[%emt 0:02:52]} (27... Bg6 $14) 28. Rxh4 $16 {[%emt 0:00:21]} Rcf5 {[%emt 0:00:29]} 29. Rc2 $1 {[%emt 0:09:44]} Bb5 {[%emt 0:01:46]} 30. Rg4+ {[%emt 0:11:12]} Kh8 {[%emt 0:00:08]} 31. Rd2 {[%emt 0:00:08]} Be8 {[%emt 0:03:22]} 32. Rc2 {[%emt 0:11:36]} (32. Kg1 $142) 32... Bb5 $1 $16 {[%emt 0:03:55]} 33. a3 {[%emt 0:03:20]} Bd7 {[%emt 0:03:58]} 34. Rd2 {[%emt 0:03:29]} ({Vorzuziehen ist} 34. Rxc4 Rb5 35. Rgxf4 Rxf4 36. Nxf4 Rxb2+ 37. Kg3) 34... Be6 $16 {[%emt 0:02:15]} 35. Rd6 {[%emt 0:02:21]} Bg8 {[%emt 0:02:18]} 36. Rxa6 {[%emt 0:03:04]} ({Günstiger ist} 36. Rb6 $16) 36... Rb5 $11 {[%emt 0:00:13]} 37. Nxf4 {[%emt 0:01:53]} Rxb2+ {[%emt 0:00:16]} 38. Kg3 {[%emt 0:00:32]} Rb7 {[%emt 0:02:26]} (38... Rc8 $1 $11 {hält das Gleichgewicht.}) 39. Rh6 $16 {[%emt 0:02:02]} Bf7 {[%emt 0:01:20]} 40. Rgh4 {[%emt 0:00:00]} Be8 {[%emt 0:00:00]} 41. Nd5 {[%emt 0:06:41]} Rg7+ {[%emt 0:05:25]} 42. Kf2 {[%emt 0:01:07]} Bf7 {[%emt 0:01:37]} 43. Ne3 $1 {[%emt 0:06:08]} Bg8 {[%emt 0:09:15]} 44. Nxc4 {[%emt 0:00:43]} Ra7 {[%emt 0:00:44]} 45. Ne5 {[%emt 0:02:35]} Re8 {[%emt 0:00:49]} 46. Re4 {[%emt 0:03:47]} Rxa3 {[%emt 0:00:44]} 47. Rh5 {[%emt 0:04:25]} Rc8 {[%emt 0:06:13]} 48. g4 {[%emt 0:00:22]} Kg7 {[%emt 0:01:35]} 49. Rg5+ {[%emt 0:00:48]} Kf6 {[%emt 0:00:41] [#]} 50. Rf5+ $1 {[%emt 0:00:33]} Kg7 {[%emt 0:00:09]} 51. Nd7 {[%emt 0:00:44]} Ra7 {[%emt 0:01:48]} 52. Re7+ {[%emt 0:01:43]} Kh8 {[%emt 0:00:48] [#]} 53. Rg5 $1 {[%emt 0:00:51]} Ra6 {[%emt 0:06:20]} 54. Kg3 {[%emt 0:03:03]} Bb3 {[%emt 0:01:49]} (54... h6 $142 55. Rgg7 Re8) 55. f4 {[%emt 0:02:12]} Re6 $2 {[%emt 0:03:37]} (55... Bg8 {war angesagt.} 56. Ne5 Rh6) 56. Rgg7 $18 {[%emt 0:02:12]} Rh6 {[%emt 0:01:45]} (56... Rxe7 $142 57. Rxe7 Rc7) 57. f5 $18 {[%emt 0:00:51]} Bc2 {[%emt 0:03:56]} (57... Ba2 $142 58. Kf4 (58. g5 Rc3+ 59. Kf4 Rc4+ 60. Kf3 Rc3+ 61. Ke4 Rhh3 $11) 58... Rh3) 58. Kf4 {[%emt 0:00:40]} (58. f6 $142 Rc3+ 59. Kf2) 58... Rg8 {[%emt 0:01:01]} 59. Nf6 {[%emt 0:00:49]} 1-0

[Event "Austrian Bundesliga 2023-24"]
[Site "Austria"]
[Date "2024.03.23"]
[Round "10.15"]
[White "Schreiner, Peter"]
[Black "Livaic, Leon"]
[Result "1/2-1/2"]
[ECO "A04"]
[WhiteElo "2400"]
[BlackElo "2558"]
[Annotator "TA"]
[PlyCount "61"]
[EventDate "2023.10.21"]
[EventType "team-tourn"]
[EventCountry "AUT"]
[SourceTitle "playchess.com"]
[Source "ChessBase"]
[SourceQuality "1"]
[TimeControl "40/5400+30:1800+30"]

{[%evp 13,61,25,41,27,22,12,16,8,18,18,29,18,35,28,36,33,29,21,46,19,51,17,15,9,22,10,85,87,87,63,108,92,101,85,81,51,79,52,97,111,143,41,52,43,42,36,67,19,58,68]} 1. Nf3 {[%emt 0:00:09]} d6 {[%emt 0:00:15]} 2. d4 {[%emt 0:00:30]} Nf6 {[%emt 0:00:13]} 3. c4 {[%emt 0:03:15]} g6 {[%emt 0:00:25]} 4. g3 {[%emt 0:00:25]} Bg7 {[%emt 0:00:10]} 5. Bg2 {[%emt 0:00:08]} Bf5 {[%emt 0:01:24]} 6. O-O {[%emt 0:05:09]} O-O {[%emt 0:00:47]} 7. Nc3 {[%emt 0:06:35]} Ne4 {[%emt 0:00:22]} 8. Nd5 {[%emt 0:00:40]} c6 {[%emt 0:02:51]} 9. Ne3 {[%emt 0:00:15]} Bc8 {[%emt 0:02:07]} 10. Qc2 {[%emt 0:04:00] The position is equal.} f5 {[%emt 0:02:09]} 11. b3 {[%emt 0:01:31][%cal Bb2b3,Bb3b4][%mdl 32]} Nd7 {[%emt 0:07:29]} 12. Bb2 {[%emt 0:05:08]} e5 {[%emt 0:01:00]} 13. dxe5 {[%emt 0:02:10]} dxe5 {[%emt 0:00:16]} 14. b4 {[%emt 0:00:34]} Qe7 {[%emt 0:06:23]} 15. c5 {[%emt 0:03:36]} Nef6 {[%emt 0:00:58]} 16. Rad1 {[%emt 0:09:12]} Kh8 {[%emt 0:01:54]} (16... e4 {looks sharper.} 17. Ng5 a5 18. Rd6 Ne8) 17. Qb3 {[%emt 0:07:28]} a5 {[%emt 0:04:44]} 18. a3 {[%emt 0:00:54]} axb4 {[%emt 0:00:30]} 19. axb4 {[%emt 0:00:07]} Ne8 {[%emt 0:02:59]} (19... e4 $1 $11) 20. Nc4 $36 {[%emt 0:03:04][%mdl 2048] Black is under strong pressure.} e4 {[%emt 0:02:53]} 21. Bxg7+ {[%emt 0:01:24]} Nxg7 {[%emt 0:06:17] [#]} 22. Nd4 {[%emt 0:02:06]} Nf6 {[%emt 0:01:03]} 23. Nb6 {[%emt 0:02:43]} Rb8 {[%emt 0:00:10]} 24. Qc3 {[%emt 0:01:34]} Bd7 {[%emt 0:11:30]} 25. Ra1 {[%emt 0:08:06]} Be8 {[%emt 0:04:43]} 26. Ra7 {[%emt 0:01:19]} Qe5 {[%emt 0:01:31] [#]} 27. Nb5 {[%emt 0:09:28]} Qxc3 $14 28. Nxc3 {[%emt 0:00:04]} Ne6 {[%emt 0:03:32]} 29. Rd1 {[%emt 0:03:07]} Nc7 {[%emt 0:00:19]} 30. Raa1 {[%emt 0:06:25] White has more active pieces.} (30. f3 $14) 30... Nb5 {[%emt 0:03:58]} 31. Nxb5 {[%emt 0:01:21] Weighted Error Value: White=0.17 (very precise) /Black=0.18 (very precise) .  Mistake:       	White=2     	Black=1      Inaccurate:     	White=3     	Black=6      OK:         	White=10    	Black=11     Best:        	White=2     	---} 1/2-1/2

[Event "Austrian Bundesliga 2023-24"]
[Site "Austria"]
[Date "2024.03.23"]
[Round "10.16"]
[White "Bosiocic, Marin"]
[Black "Diermair, Andreas"]
[Result "1-0"]
[ECO "C44"]
[WhiteElo "2549"]
[BlackElo "2434"]
[Annotator "TA"]
[PlyCount "79"]
[EventDate "2023.10.21"]
[EventType "team-tourn"]
[EventCountry "AUT"]
[SourceTitle "playchess.com"]
[Source "ChessBase"]
[SourceQuality "1"]
[TimeControl "40/5400+30:1800+30"]

{[%evp 11,79,-12,14,0,0,0,0,0,0,0,14,24,24,0,23,1,6,0,20,21,8,-42,0,0,2,0,-13,-3,51,63,61,-32,-41,-104,-97,-117,-112,-146,-160,-158,-164,-174,-37,-44,0,-70,0,0,39,31,39,39,38,38,38,54,34,25,129,118,368,381,372,351,29995,29996,29996,29996,29997,172]} 1. e4 {[%emt 0:00:02]} e5 {[%emt 0:00:08]} 2. Nf3 {[%emt 0:00:05]} Nc6 {[%emt 0:00:03]} 3. g3 {[%emt 0:00:07]} Nf6 {[%emt 0:03:37]} 4. d3 {[%emt 0:00:06]} d5 {[%emt 0:02:02]} 5. exd5 {[%emt 0:00:08]} Nxd5 {[%emt 0:00:09]} 6. Bg2 {[%emt 0:00:06]} g6 {[%emt 0:06:35] Recently 6...Bd6 got a lot of attention. C44: Ponziani Opening and Scotch Gambit.} 7. Bd2 {[%emt 0:05:42]} Bg7 {[%emt 0:00:25]} 8. Nc3 {[%emt 0:00:08]} Nde7 {[%emt 0:01:06]} 9. O-O {[%emt 0:00:17]} O-O {[%emt 0:02:34]} 10. Re1 {[%emt 0:00:06]} h6 {[%emt 0:01:17]} 11. b4 {[%emt 0:01:54]} a6 {[%emt 0:01:04]} 12. Rb1 {[%emt 0:02:18]} Nf5 {[%emt 0:02:27]} 13. a4 {[%emt 0:03:46]} Re8 {[%emt 0:01:04]} 14. Ne4 {[%emt 0:03:25]} Ncd4 $146 {[%emt 0:09:14]} ({Predecessor:} 14... Rb8 15. h4 Ncd4 16. Nh2 Nd6 17. c3 Ne6 18. Ng4 h5 19. Nh6+ Kf8 20. Qf3 f6 21. Nxd6 cxd6 {½-½ Triapishko,A (2530)-Movsesian,S (2632) EU-ch 19th Batumi 2018 (3)}) 15. Nxd4 {[%emt 0:18:47]} Nxd4 {[%emt 0:00:24]} 16. f4 {[%emt 0:06:00]} (16. c3 $11 Nf5 17. h4) 16... exf4 {[%emt 0:04:26]} 17. Bxf4 {[%emt 0:00:12]} c6 {[%emt 0:09:03]} 18. Qd2 {[%emt 0:03:21]} g5 {[%emt 0:01:31]} 19. Be3 $1 {[%emt 0:00:07]} a5 {[%emt 0:08:27]} (19... Bg4 $11) 20. bxa5 $14 {[%emt 0:02:54]} f5 {[%emt 0:01:09]} 21. Nc5 {[%emt 0:02:42]} (21. Nf2 $14) 21... Qxa5 $15 {[%emt 0:08:08]} 22. c3 {[%emt 0:12:31]} ({Better is} 22. Nxb7 $15 Bxb7 23. c3) 22... Qxc5 $17 {[%emt 0:01:51]} 23. Kh1 {[%emt 0:02:53]} Rxe3 $1 24. Rxe3 {[%emt 0:00:29]} Ne6 {[%emt 0:12:25]} 25. d4 {[%emt 0:00:23]} Qd6 {[%emt 0:00:33]} 26. Qa2 {[%emt 0:02:55]} Kh7 {[%emt 0:01:27]} ({Black should play} 26... Kf8 $19 {Threatens to win with ...Nc7.} 27. Rbe1 Nc7) 27. Rbe1 $1 $15 {[%emt 0:00:49]} Bd7 {[%emt 0:04:06]} (27... c5 $5) 28. Qb3 {[%emt 0:04:40]} (28. Rxe6 $11 Bxe6 29. Rxe6) 28... Nc7 {[%emt 0:03:00]} (28... Re8 $1 $15) 29. Re7 $1 $11 {[%emt 0:02:58]} Be6 {[%emt 0:03:06]} (29... Rf8 $5) 30. Qb4 {[%emt 0:02:50]} (30. R1xe6 {simplifies} Nxe6 31. Rxe6 Qd7 32. Bf1) 30... Qd8 {[%emt 0:01:19]} 31. R7xe6 {[%emt 0:02:32]} Nxe6 {[%emt 0:00:05]} 32. Rxe6 {[%emt 0:00:09]} Qa5 {[%emt 0:01:09]} 33. Qxb7 {[%emt 0:04:28]} Qxc3 {[%emt 0:00:48]} 34. Qb1 {[%emt 0:04:48]} (34. Qxa8 $2 Qc1+ (34... Qxd4 $2 35. Qe8 $18) (34... Qxd4 $2 35. Qe8 $18)) 34... Ra5 {[%emt 0:02:29]} (34... Rf8 $11 {remains equal.}) 35. Be4 $16 {[%emt 0:02:36]} (35. Rxc6 $6 Qxd4 36. Rc1 Qxa4 $11) 35... Kg8 $2 {[%emt 0:06:26]} (35... fxe4 36. Qxe4+ Kh8 37. Re8+ (37. Qxc6 $2 Qxc6+ 38. Rxc6 Rxa4 $19) (37. Qxc6 $2 Qxc6+ 38. Rxc6 Rxa4 $19)) (35... Ra8 $16 {was necessary.}) 36. Qa2 $1 $18 {[%emt 0:02:17]} (36. Bxc6 Qc4 37. Re8+ (37. d5 Rxd5 38. Bb7 Ra5 $11) 37... Kh7 $11) (36. Rxc6 Qxd4 37. Rc8+ (37. Bxf5 Qa1 $16) 37... Kf7 38. Bxf5 Qa1 $14) 36... Kh7 {[%emt 0:02:02] [#]} (36... fxe4 37. Re8+ (37. Rxc6+ Kh8 $18) 37... Kh7 38. Qg8+ Kg6 39. Qe6+ Kh5 40. Qf7+ (40. Qh3+ Kg6 41. Qe6+ Kh5 42. Qf7+ Kg4 43. Rxe4+ Kh3 44. Qh5#) 40... Kg4 41. Rxe4+ Kh3 42. Qh5#) 37. Re8 $1 {[%emt 0:02:16]} (37. Rxc6 {gets mated.} Qe1+ (37... Qxd4 $2 38. Bf3 $19) 38. Kg2 Qxe4+ 39. Kf1 Qh1+ (39... Qxc6 {is a self mate.} 40. Qf2 Qxa4 41. Qe2 Qc6 42. Qb2 Qh1+ 43. Kf2 Qxh2+ 44. Ke3 Qxb2 45. Kd3 Qxd4+ 46. Ke2 Ra2+ 47. Kf3 g4#) 40. Kf2 Qxh2+ (40... Qxc6 41. Qb3 Bxd4+ 42. Kf1 Qa6+ 43. Ke1 Re5+ 44. Kd1 Qe2+ 45. Kc1 Rc5+ 46. Kb1 Qe1+ 47. Qd1 Qb4+ 48. Ka2 Qb2#) 41. Kf1 Qxa2 42. Rc3 Rxa4 (42... Qxa4 43. Rf3 Qd1+ 44. Kg2 Bxd4 45. Rxf5 Ra2+ 46. Rf2 Rxf2+ 47. Kh3 Qh5#) 43. Rf3 Bxd4 (43... Rxd4 44. Rf2 Rd1+ 45. Kg2 Qd5+ 46. Rf3 Rd2+ 47. Kg1 Qxf3 48. g4 Qg2#) 44. Rxf5 Qb1+ 45. Kg2 Qxf5 46. Kh2 Ra2+ 47. Kh1 Qh3#) (37. Bxc6 g4 $11) 37... fxe4 $2 {[%emt 0:02:00]} (37... Rd5 $18 38. Bxd5 cxd5) 38. Qg8+ {[%emt 0:00:16]} Kg6 {[%emt 0:00:03]} 39. Re6+ {[%emt 0:00:10]} Kh5 {[%emt 0:00:34] [#]} 40. Qf7+ $1 {[%emt 0:00:00]} 1-0